[Event "Nové Hrady - Open"]
[Site "Nové Hrady, Czech Republic"]
[Date "2024.08.14"]
[Round "4.1"]
[White "Hrbek, Jáchym"]
[Black "Šimůnek, Jakub Šimon"]
[Result "0-1"]
[TimeControl "2x90min+30s"]
[WhiteFideId "23709138"]
[BlackFideId "23709464"]
[WhiteElo "1996"]
[BlackElo "2042"]

1. Nf3 {[%clk 01:30:44]} {[%emt 00:00:13]} d5 {[%clk 01:30:55]} {[%emt
00:00:08]} 2. c4 {[%clk 01:31:02]} {[%emt 00:00:12]} c6 {[%clk 01:31:17]}
{[%emt 00:00:08]} 3. b3 {[%clk 01:31:19]} {[%emt 00:00:13]} Nf6 {[%clk
01:31:00]} {[%emt 00:00:47]} 4. Bb2 {[%clk 01:31:23]} {[%emt 00:00:26]} Bf5
{[%clk 01:30:44]} {[%emt 00:00:45]} 5. g3 {[%clk 01:31:05]} {[%emt 00:00:48]}
e6 {[%clk 01:30:53]} {[%emt 00:00:22]} 6. Bg2 {[%clk 01:31:10]} {[%emt
00:00:25]} Be7 {[%clk 01:31:07]} {[%emt 00:00:16]} 7. O-O {[%clk 01:31:06]}
{[%emt 00:00:34]} O-O {[%clk 01:31:24]} {[%emt 00:00:13]} 8. d3 {[%clk
01:30:10]} {[%emt 00:01:26]} h6 {[%clk 01:30:47]} {[%emt 00:01:08]} 9. Nbd2
{[%clk 01:29:37]} {[%emt 00:01:01]} a5 {[%clk 01:28:29]} {[%emt 00:02:49]} 10.
a3 {[%clk 01:27:38]} {[%emt 00:02:28]} Qb6 {[%emt 00:06:13]} 11. Ra2 {[%clk
01:11:27]} {[%emt 00:16:34]} Rd8 {[%clk 01:13:02]} {[%emt 00:10:22]} 12. Qa1
{[%clk 01:09:46]} {[%emt 00:02:10]} Nbd7 {[%clk 01:09:54]} {[%emt 00:03:38]} 13.
Rb1 {[%clk 00:59:28]} {[%emt 00:10:48]} Bh7 {[%clk 00:58:30]} {[%emt 00:11:54]}
14. Ne5 {[%clk 00:47:38]} {[%emt 00:12:20]} Nxe5 {[%clk 00:45:35]} {[%emt
00:13:26]} 15. Bxe5 {[%clk 00:47:33]} {[%emt 00:00:34]} Ng4 {[%clk 00:36:55]}
{[%emt 00:09:11]} 16. Bd4 {[%clk 00:41:42]} {[%emt 00:06:21]} Bc5 {[%clk
00:36:32]} {[%emt 00:00:53]} 17. Bxc5 {[%clk 00:39:19]} {[%emt 00:02:53]} Qxc5
{[%clk 00:36:54]} {[%emt 00:00:08]} 18. d4 {[%clk 00:39:38]} {[%emt 00:00:09]}
Qb6 {[%clk 00:35:23]} {[%emt 00:02:02]} 19. Rc1 {[%clk 00:36:27]} {[%emt
00:03:42]} dxc4 {[%clk 00:31:51]} {[%emt 00:04:03]} 20. Rxc4 {[%clk 00:36:31]}
{[%emt 00:00:25]} Rd7 {[%clk 00:28:01]} {[%emt 00:04:20]} 21. e3 {[%clk
00:30:03]} {[%emt 00:06:57]} Nf6 {[%clk 00:20:30]} {[%emt 00:08:02]} 22. Qb2
{[%clk 00:18:11]} {[%emt 00:12:21]} Rad8 {[%clk 00:15:37]} {[%emt 00:05:23]} 23.
Rc5 {[%clk 00:16:40]} {[%emt 00:02:01]} a4 {[%clk 00:09:13]} {[%emt 00:06:55]}
24. bxa4 {[%clk 00:14:50]} {[%emt 00:02:19]} Qa6 {[%clk 00:09:36]} {[%emt
00:00:07]} 25. Rc4 {[%clk 00:14:55]} {[%emt 00:00:25]} Ne4 {[%clk 00:04:56]}
{[%emt 00:05:11]} 26. Rb4 {[%clk 00:09:37]} {[%emt 00:05:47]} Nxd2 {[%clk
00:03:31]} {[%emt 00:01:54]} 27. Qxd2 {[%clk 00:10:01]} {[%emt 00:00:06]} c5
{[%clk 00:03:59]} {[%emt 00:00:03]} 28. Bf1 {[%clk 00:07:35]} {[%emt 00:02:56]}
Qa7 {[%clk 00:02:53]} {[%emt 00:01:37]} 29. Rc4 {[%clk 00:06:02]} {[%emt
00:02:03]} cxd4 {[%clk 00:03:18]} {[%emt 00:00:05]} 30. exd4 {[%clk 00:06:27]}
{[%emt 00:00:04]} Rxd4 {[%clk 00:03:30]} {[%emt 00:00:18]} 31. Rxd4 {[%clk
00:06:51]} {[%emt 00:00:06]} Qxd4 {[%clk 00:03:52]} {[%emt 00:00:09]} 32. Qxd4
{[%clk 00:07:04]} {[%emt 00:00:17]} Rxd4 {[%clk 00:04:20]} 33. Rb2 {[%clk
00:07:19]} {[%emt 00:00:13]} Rd1 {[%clk 00:01:46]} {[%emt 00:03:06]} 34. Kg2
{[%clk 00:02:00]} {[%emt 00:05:50]} Be4+ {[%clk 00:02:11]} {[%emt 00:00:04]} 35.
f3 {[%clk 00:02:26]} {[%emt 00:00:04]} Bd5 {[%emt 00:02:07]} 36. Bb5 {[%emt
00:00:29]} Ra1 {[%emt 00:00:41]} 37. Be2 {[%clk 00:00:31]} {[%emt 00:00:13]}
Rxa3 {[%emt 00:00:15]} 38. Rb4 {[%emt 00:00:26]} Kf8 {[%clk 00:02:51]} {[%emt
00:00:10]} 39. Kf2 {[%emt 00:00:52]} Bc6 {[%clk 00:02:28]} {[%emt 00:00:51]} 40.
Bd1 {[%clk 00:00:54]} {[%emt 00:00:11]} Ra2+ {[%clk 00:01:50]} {[%emt
00:01:08]} 41. Ke3 {[%clk 00:01:23]} Rxh2 {[%emt 00:00:41]} 42. Be2 {[%clk
00:00:50]} {[%emt 00:00:29]} Rh5 {[%clk 00:01:48]} {[%emt 00:00:57]} 43. Rb6
{[%clk 00:00:53]} {[%emt 00:00:26]} Ra5 {[%clk 00:01:44]} {[%emt 00:00:34]} 44.
Bb5 {[%clk 00:01:19]} {[%emt 00:00:05]} Ke7 {[%emt 00:00:24]} 45. Bxc6 {[%clk
00:00:35]} {[%emt 00:01:09]} bxc6 {[%clk 00:02:18]} {[%emt 00:00:06]} 46. Rxc6
{[%clk 00:01:01]} {[%emt 00:00:04]} Rxa4 {[%clk 00:02:44]} {[%emt 00:00:04]} 47.
Kd4 {[%emt 00:00:20]} 0-1

[Event "Nové Hrady - Open"]
[Site "Nové Hrady, Czech Republic"]
[Date "2024.08.14"]
[Round "4.2"]
[White "Dudek, Vojtěch"]
[Black "Steinbauer, Sebastián"]
[Result "1-0"]
[TimeControl "2x90min+30s"]
[WhiteFideId "398780"]
[BlackFideId "399272"]
[WhiteElo "2117"]
[BlackElo "1990"]

1. Nf3 {[%clk 01:30:56]} {[%emt 00:00:04]} d5 {[%clk 01:30:53]} {[%emt
00:00:08]} 2. b3 {[%clk 01:31:17]} {[%emt 00:00:08]} c5 {[%clk 01:30:34]}
{[%emt 00:00:49]} 3. e3 {[%clk 01:30:47]} {[%emt 00:00:59]} Bg4 {[%clk
01:30:13]} {[%emt 00:00:53]} 4. Bb2 {[%clk 01:26:46]} {[%emt 00:04:30]} e6
{[%clk 01:28:53]} {[%emt 00:01:50]} 5. Bb5+ {[%clk 01:24:55]} {[%emt 00:02:21]}
Nc6 {[%clk 01:28:45]} {[%emt 00:00:39]} 6. h3 {[%clk 01:25:04]} {[%emt
00:00:20]} Bh5 {[%clk 01:28:59]} {[%emt 00:00:17]} 7. g4 {[%clk 01:19:19]}
{[%emt 00:06:14]} Bg6 {[%clk 01:29:00]} {[%emt 00:00:29]} 8. Ne5 {[%clk
01:19:40]} {[%emt 00:00:09]} Nge7 {[%clk 01:24:19]} {[%emt 00:05:12]} 9. h4
{[%clk 01:16:37]} {[%emt 00:03:32]} h6 {[%clk 01:17:49]} {[%emt 00:07:01]} 10.
Qf3 {[%clk 01:10:09]} {[%emt 00:06:57]} a6 {[%clk 01:09:54]} {[%emt 00:08:25]}
11. Bxc6+ {[%clk 01:08:17]} {[%emt 00:02:21]} Nxc6 {[%clk 01:09:33]} {[%emt
00:00:52]} 12. Nxg6 {[%clk 01:08:32]} {[%emt 00:00:15]} fxg6 {[%clk 01:09:56]}
{[%emt 00:00:06]} 13. Nc3 {[%clk 01:02:55]} {[%emt 00:06:09]} Be7 {[%clk
01:02:47]} {[%emt 00:07:39]} 14. O-O-O {[%clk 01:01:07]} {[%emt 00:02:16]} Qa5
{[%clk 00:34:11]} {[%emt 00:29:09]} 15. Kb1 {[%clk 00:53:32]} {[%emt 00:08:03]}
Rf8 {[%clk 00:30:15]} {[%emt 00:04:26]} 16. Qh3 {[%clk 00:53:11]} {[%emt
00:00:50]} g5 {[%clk 00:23:32]} {[%emt 00:07:14]} 17. hxg5 {[%clk 00:51:59]}
{[%emt 00:01:41]} hxg5 {[%clk 00:23:50]} {[%emt 00:00:13]} 18. Qh5+ {[%clk
00:47:00]} {[%emt 00:05:29]} Kd7 {[%clk 00:24:01]} {[%emt 00:00:19]} 19. f4
{[%clk 00:34:01]} {[%emt 00:13:29]} gxf4 {[%clk 00:23:01]} {[%emt 00:01:30]} 20.
exf4 {[%clk 00:34:23]} {[%emt 00:00:08]} Rxf4 {[%clk 00:22:38]} {[%emt
00:00:53]} 21. Rde1 {[%clk 00:33:43]} {[%emt 00:01:10]} g5 {[%clk 00:18:29]}
{[%emt 00:04:40]} 22. Qg6 {[%clk 00:33:07]} {[%emt 00:01:05]} Nd4 {[%clk
00:18:35]} {[%emt 00:00:25]} 23. Nxd5 {[%clk 00:31:32]} {[%emt 00:02:05]} exd5
{[%clk 00:14:30]} {[%emt 00:04:34]} 24. Bxd4 {[%clk 00:31:50]} {[%emt
00:00:12]} Re4 {[%clk 00:12:19]} {[%emt 00:02:41]} 25. Rxe4 {[%clk 00:29:25]}
{[%emt 00:02:54]} dxe4 {[%clk 00:12:38]} {[%emt 00:00:12]} 26. Qf5+ {[%clk
00:27:09]} {[%emt 00:02:45]} Kc7 {[%clk 00:08:04]} {[%emt 00:05:06]} 27. Rh7
{[%clk 00:26:59]} {[%emt 00:00:39]} Re8 {[%clk 00:06:57]} {[%emt 00:01:37]} 28.
Bxc5 {[%clk 00:26:55]} {[%emt 00:00:34]} Qxd2 {[%clk 00:04:39]} {[%emt
00:02:48]} 29. Qe5+ {[%clk 00:26:39]} {[%emt 00:00:45]} Kc8 {[%clk 00:04:38]}
{[%emt 00:00:32]} 30. Bxe7 {[%clk 00:26:35]} {[%emt 00:00:35]} e3 {[%clk
00:04:01]} {[%emt 00:01:06]} 31. Qe6+ {[%clk 00:26:45]} {[%emt 00:00:19]} Kb8
{[%clk 00:02:31]} {[%emt 00:02:01]} 32. Bd6+ {[%clk 00:26:58]} {[%emt
00:00:17]} Ka7 {[%clk 00:02:54]} {[%emt 00:00:08]} 33. Bc5+ {[%clk 00:27:20]}
{[%emt 00:00:07]} 1-0

[Event "Nové Hrady - Open"]
[Site "Nové Hrady, Czech Republic"]
[Date "2024.08.14"]
[Round "4.3"]
[White "Picek, Miroslav"]
[Black "Kaiser, Richard"]
[Result "0-1"]
[TimeControl "2x90min+30s"]
[WhiteFideId "325198"]
[BlackFideId "4651286"]
[WhiteElo "1922"]
[BlackElo "2019"]

1. e4 {[%clk 01:30:50]} {[%emt 00:00:09]} c5 {[%clk 01:29:55]} {[%emt
00:01:07]} 2. Nf3 {[%clk 01:31:08]} {[%emt 00:00:11]} d6 {[%clk 01:29:02]}
{[%emt 00:01:23]} 3. c3 {[%clk 01:31:18]} {[%emt 00:00:19]} Nf6 {[%clk
01:29:04]} {[%emt 00:00:29]} 4. Be2 {[%clk 01:31:28]} {[%emt 00:00:20]} g6
{[%clk 01:28:39]} {[%emt 00:00:56]} 5. d3 {[%clk 01:31:05]} {[%emt 00:00:53]}
Bg7 {[%clk 01:28:55]} {[%emt 00:00:14]} 6. Nbd2 {[%clk 01:31:18]} {[%emt
00:00:16]} O-O {[%clk 01:28:41]} {[%emt 00:00:45]} 7. Nf1 {[%clk 01:31:32]}
{[%emt 00:00:16]} Nc6 {[%clk 01:27:55]} {[%emt 00:01:15]} 8. Ng3 {[%clk
01:31:00]} {[%emt 00:01:02]} Qc7 {[%clk 00:57:21]} {[%emt 00:31:05]} 9. Bf4
{[%clk 01:28:07]} {[%emt 00:03:22]} e5 {[%clk 00:54:20]} {[%emt 00:03:32]} 10.
Bd2 {[%clk 01:28:17]} {[%emt 00:00:19]} d5 {[%clk 00:53:10]} {[%emt 00:01:41]}
11. Qc1 {[%clk 01:28:15]} {[%emt 00:00:31]} Na5 {[%clk 00:36:50]} {[%emt
00:16:50]} 12. h3 {[%clk 01:20:05]} {[%emt 00:08:39]} c4 {[%clk 00:35:50]}
{[%emt 00:01:31]} 13. Bh6 {[%clk 01:15:29]} {[%emt 00:05:05]} cxd3 {[%clk
00:35:19]} {[%emt 00:01:02]} 14. Bxg7 {[%clk 01:13:28]} {[%emt 00:02:31]} Kxg7
{[%clk 00:35:45]} {[%emt 00:00:05]} 15. Bxd3 {[%clk 01:13:12]} {[%emt
00:00:45]} dxe4 {[%clk 00:34:27]} {[%emt 00:01:48]} 16. Bxe4 {[%clk 01:11:32]}
{[%emt 00:02:10]} Nxe4 {[%clk 00:33:57]} {[%emt 00:01:00]} 17. Nxe4 {[%clk
01:10:52]} {[%emt 00:01:10]} f5 {[%clk 00:31:55]} {[%emt 00:02:32]} 18. Ned2
{[%clk 01:04:32]} {[%emt 00:06:51]} e4 {[%clk 00:31:23]} {[%emt 00:01:01]} 19.
Nd4 {[%clk 01:04:34]} {[%emt 00:00:29]} e3 {[%clk 00:31:06]} {[%emt 00:00:47]}
20. N2b3 {[%clk 01:03:06]} {[%emt 00:01:58]} Nc4 {[%clk 00:28:40]} {[%emt
00:02:56]} 21. O-O {[%clk 00:58:19]} {[%emt 00:05:16]} f4 {[%clk 00:27:59]}
{[%emt 00:01:12]} 22. Nf3 {[%clk 00:51:58]} {[%emt 00:06:50]} Bf5 {[%clk
00:25:49]} {[%emt 00:02:41]} 23. Nbd4 {[%clk 00:52:04]} {[%emt 00:00:23]} Rae8
{[%clk 00:25:56]} {[%emt 00:00:23]} 24. Nxf5+ {[%clk 00:46:40]} {[%emt
00:05:54]} Rxf5 {[%clk 00:26:08]} {[%emt 00:00:18]} 25. b3 {[%clk 00:45:52]}
{[%emt 00:01:19]} exf2+ {[%clk 00:25:29]} {[%emt 00:01:08]} 26. Rxf2 {[%clk
00:44:55]} {[%emt 00:01:27]} Ne3 {[%clk 00:24:48]} {[%emt 00:01:12]} 27. Rd2
{[%clk 00:39:56]} {[%emt 00:05:28]} b5 {[%clk 00:22:48]} {[%emt 00:02:31]} 28.
a4 {[%clk 00:37:03]} {[%emt 00:03:23]} Rc5 {[%clk 00:21:28]} {[%emt 00:01:50]}
29. axb5 {[%clk 00:36:06]} {[%emt 00:01:26]} Rxb5 {[%clk 00:20:58]} {[%emt
00:01:01]} 30. Nd4 {[%clk 00:34:31]} {[%emt 00:02:05]} Rg5 {[%emt 00:05:22]} 31.
Nf3 {[%clk 00:24:32]} {[%emt 00:06:33]} Rg3 {[%clk 00:19:38]} {[%emt 00:00:53]}
32. Qa3 {[%clk 00:24:03]} {[%emt 00:00:59]} Re7 {[%clk 00:15:37]} {[%emt
00:04:31]} 33. Qb4 {[%clk 00:23:19]} {[%emt 00:01:11]} Rf7 {[%clk 00:12:56]}
{[%emt 00:03:14]} 34. Qd4+ {[%clk 00:21:49]} {[%emt 00:02:01]} Kh6 {[%clk
00:12:49]} {[%emt 00:00:36]} 35. Ne5 {[%clk 00:21:17]} {[%emt 00:01:02]} Rf5
{[%clk 00:12:49]} {[%emt 00:00:30]} 36. Ng4+ {[%clk 00:16:55]} {[%emt
00:04:51]} Nxg4 {[%clk 00:13:16]} {[%emt 00:00:04]} 37. hxg4 {[%clk 00:17:14]}
{[%emt 00:00:11]} Rf7 {[%clk 00:13:26]} {[%emt 00:00:20]} 38. Kf2 {[%clk
00:17:20]} {[%emt 00:00:24]} Qb6 {[%clk 00:09:44]} {[%emt 00:04:12]} 39. Qxb6
{[%clk 00:11:16]} {[%emt 00:06:34]} axb6 {[%clk 00:10:11]} {[%emt 00:00:04]} 40.
Rc1 {[%clk 00:11:01]} {[%emt 00:00:44]} Kg5 {[%clk 00:10:12]} {[%emt 00:00:29]}
41. Rd6 {[%clk 00:10:31]} {[%emt 00:01:00]} Rb7 {[%clk 00:10:24]} {[%emt
00:00:18]} 42. b4 {[%clk 00:10:33]} {[%emt 00:00:27]} Kxg4 {[%clk 00:10:26]}
{[%emt 00:00:29]} 43. c4 {[%clk 00:09:59]} {[%emt 00:01:04]} g5 {[%clk
00:08:53]} {[%emt 00:02:03]} 44. Rcd1 {[%clk 00:09:39]} {[%emt 00:00:50]} Rc3
{[%clk 00:08:15]} {[%emt 00:01:08]} 45. R6d4 {[%clk 00:08:26]} {[%emt
00:01:43]} Ra7 {[%clk 00:08:28]} {[%emt 00:00:17]} 46. R1d2 {[%clk 00:08:07]}
{[%emt 00:00:49]} h5 {[%clk 00:07:49]} {[%emt 00:01:09]} 47. Rd6 {[%clk
00:07:13]} {[%emt 00:01:23]} Rb7 {[%clk 00:05:39]} {[%emt 00:02:42]} 48. Rc6
{[%clk 00:06:13]} {[%emt 00:01:29]} Rb3 {[%clk 00:05:35]} {[%emt 00:00:34]} 49.
b5 {[%clk 00:06:27]} {[%emt 00:00:16]} h4 {[%clk 00:04:27]} {[%emt 00:01:38]}
50. Rg6 {[%clk 00:06:35]} {[%emt 00:00:21]} h3 {[%clk 00:04:26]} {[%emt
00:00:32]} 51. gxh3+ {[%clk 00:05:29]} {[%emt 00:01:35]} Rxh3 {[%clk 00:04:52]}
{[%emt 00:00:05]} 52. Rd5 {[%clk 00:05:52]} {[%emt 00:00:06]} Rh2+ {[%clk
00:05:10]} {[%emt 00:00:13]} 53. Kg1 {[%clk 00:06:01]} {[%emt 00:00:22]} Rh5
{[%clk 00:05:05]} {[%emt 00:00:35]} 54. Kf2 {[%clk 00:05:11]} {[%emt 00:01:19]}
Ra7 {[%clk 00:05:14]} {[%emt 00:00:21]} 55. Ke2 {[%clk 00:04:14]} {[%emt
00:01:27]} Ra3 {[%clk 00:05:13]} {[%emt 00:00:30]} 0-1

[Event "Nové Hrady - Open"]
[Site "Nové Hrady, Czech Republic"]
[Date "2024.08.14"]
[Round "4.4"]
[White "Dudarec, Elias"]
[Black "Žilavý, Jan"]
[Result "0-1"]
[TimeControl "2x90min+30s"]
[WhiteFideId "23714930"]
[BlackFideId "350141"]
[WhiteElo "1750"]
[BlackElo "2127"]

1. e4 {[%clk 01:30:57]} {[%emt 00:00:02]} c6 {[%clk 01:30:51]} {[%emt
00:00:10]} 2. d4 {[%clk 01:31:22]} {[%emt 00:00:06]} d5 {[%clk 01:31:17]}
{[%emt 00:00:04]} 3. e5 {[%clk 01:31:44]} {[%emt 00:00:07]} Bf5 {[%clk
01:31:40]} {[%emt 00:00:07]} 4. h4 {[%clk 01:32:07]} {[%emt 00:00:07]} h5
{[%clk 01:31:51]} {[%emt 00:00:19]} 5. c4 {[%clk 01:31:49]} {[%emt 00:00:49]}
e6 {[%clk 01:31:24]} {[%emt 00:00:56]} 6. Nf3 {[%clk 01:31:53]} {[%emt
00:00:26]} Nd7 {[%clk 01:29:36]} {[%emt 00:02:19]} 7. Nc3 {[%clk 01:27:25]}
{[%emt 00:04:58]} Ne7 {[%clk 01:28:45]} {[%emt 00:01:20]} 8. Bg5 {[%clk
01:19:02]} {[%emt 00:08:53]} f6 {[%clk 01:26:23]} {[%emt 00:02:52]} 9. exf6
{[%clk 01:15:25]} {[%emt 00:04:07]} gxf6 {[%clk 01:26:41]} {[%emt 00:00:11]} 10.
Bf4 {[%clk 01:15:07]} {[%emt 00:00:50]} dxc4 {[%clk 01:22:40]} {[%emt
00:04:30]} 11. Bxc4 {[%clk 01:09:14]} {[%emt 00:06:23]} Nb6 {[%clk 01:22:05]}
{[%emt 00:01:05]} 12. Bb3 {[%clk 01:09:01]} {[%emt 00:00:44]} Ned5 {[%clk
01:20:46]} {[%emt 00:01:47]} 13. Bg3 {[%clk 01:04:19]} {[%emt 00:05:12]} Bd6
{[%clk 01:19:31]} {[%emt 00:01:45]} 14. Nxd5 {[%clk 00:58:34]} {[%emt
00:06:16]} Nxd5 {[%clk 01:19:44]} {[%emt 00:00:17]} 15. Bxd6 {[%clk 00:47:45]}
{[%emt 00:11:20]} Qxd6 {[%clk 01:20:05]} {[%emt 00:00:08]} 16. Qd2 {[%clk
00:36:06]} {[%emt 00:12:10]} O-O-O {[%clk 01:07:44]} {[%emt 00:12:50]} 17. Bc2
{[%clk 00:34:06]} {[%emt 00:02:30]} Bg4 {[%clk 01:02:46]} {[%emt 00:05:27]} 18.
O-O-O {[%clk 00:33:13]} {[%emt 00:01:23]} Nf4 {[%clk 01:01:59]} {[%emt
00:01:17]} 19. Kb1 {[%clk 00:21:14]} {[%emt 00:12:30]} Nxg2 {[%clk 01:01:00]}
{[%emt 00:01:28]} 20. Qc3 {[%clk 00:21:09]} {[%emt 00:00:35]} Qd5 {[%clk
00:57:14]} {[%emt 00:04:17]} 21. Rd3 {[%clk 00:19:23]} {[%emt 00:02:17]} Nf4
{[%clk 00:57:04]} {[%emt 00:00:39]} 22. Re3 {[%clk 00:19:02]} {[%emt 00:00:52]}
Ne2 {[%clk 00:53:15]} {[%emt 00:04:18]} 23. Qa3 {[%clk 00:17:15]} {[%emt
00:02:17]} Bxf3 {[%clk 00:51:12]} {[%emt 00:02:33]} 24. Rxf3 {[%clk 00:17:26]}
{[%emt 00:00:19]} Nxd4 {[%clk 00:51:33]} {[%emt 00:00:09]} 25. Rfh3 {[%clk
00:17:07]} {[%emt 00:00:50]} Nxc2 {[%clk 00:51:46]} {[%emt 00:00:16]} 26. Kxc2
{[%clk 00:17:29]} {[%emt 00:00:09]} Qe4+ {[%clk 00:49:07]} {[%emt 00:03:08]} 27.
Kc1 {[%clk 00:17:41]} {[%emt 00:00:18]} Rd4 {[%clk 00:49:00]} {[%emt 00:00:37]}
28. Rg1 {[%clk 00:14:45]} {[%emt 00:03:26]} Rhd8 {[%clk 00:48:36]} {[%emt
00:00:54]} 29. Re3 {[%clk 00:14:28]} {[%emt 00:00:47]} Rc4+ {[%clk 00:48:21]}
{[%emt 00:00:45]} 30. Rc3 {[%clk 00:14:44]} {[%emt 00:00:14]} Qf4+ {[%clk
00:48:19]} {[%emt 00:00:31]} 31. Kb1 {[%clk 00:14:42]} {[%emt 00:00:32]} Qxf2
{[%clk 00:47:30]} {[%emt 00:01:20]} 32. Rgc1 {[%clk 00:14:53]} {[%emt
00:00:19]} Rxc3 {[%clk 00:47:00]} {[%emt 00:01:00]} 33. Qxc3 {[%clk 00:15:03]}
{[%emt 00:00:19]} Rd2 {[%clk 00:46:27]} {[%emt 00:01:03]} 34. Qb3 {[%clk
00:15:07]} {[%emt 00:00:28]} Qf5+ {[%clk 00:46:19]} {[%emt 00:00:36]} 35. Ka1
{[%clk 00:15:29]} {[%emt 00:00:08]} Qd5 {[%clk 00:46:29]} {[%emt 00:00:20]} 36.
Qa4 {[%clk 00:15:20]} {[%emt 00:00:40]} e5 {[%clk 00:43:44]} {[%emt 00:03:15]}
37. Rg1 {[%clk 00:14:21]} {[%emt 00:01:28]} b5 {[%clk 00:41:19]} {[%emt
00:02:56]} 38. Qa6+ {[%clk 00:14:41]} {[%emt 00:00:08]} Kb8 {[%clk 00:41:42]}
{[%emt 00:00:08]} 0-1

[Event "Nové Hrady - Open"]
[Site "Nové Hrady, Czech Republic"]
[Date "2024.08.14"]
[Round "4.5"]
[White "Slabý, Matěj"]
[Black "Hokr, Matyáš"]
[Result "0-1"]
[TimeControl "2x90min+30s"]
[WhiteFideId "23734876"]
[BlackFideId "23734663"]
[WhiteElo "2020"]
[BlackElo "1641"]

1. d4 {[%clk 01:30:40]} {[%emt 00:00:19]} Nf6 {[%clk 01:29:58]} {[%emt
00:01:03]} 2. Nf3 {[%clk 01:31:04]} {[%emt 00:00:07]} e6 {[%clk 01:29:34]}
{[%emt 00:00:53]} 3. e3 {[%clk 01:31:27]} {[%emt 00:00:06]} c5 {[%clk
01:27:45]} {[%emt 00:02:20]} 4. Bd3 {[%clk 01:31:45]} {[%emt 00:00:12]} Nc6
{[%clk 01:26:02]} {[%emt 00:02:13]} 5. O-O {[%clk 01:31:51]} {[%emt 00:00:24]}
d5 {[%clk 01:24:41]} {[%emt 00:01:52]} 6. c3 {[%clk 01:32:14]} {[%emt
00:00:06]} Bd6 {[%clk 01:24:36]} {[%emt 00:00:35]} 7. Nbd2 {[%clk 01:32:39]}
{[%emt 00:00:06]} e5 {[%clk 01:23:12]} {[%emt 00:01:54]} 8. e4 {[%clk
01:30:50]} {[%emt 00:02:18]} cxd4 {[%clk 01:20:51]} {[%emt 00:02:51]} 9. cxd4
{[%clk 01:31:04]} {[%emt 00:00:17]} dxe4 {[%clk 01:18:34]} {[%emt 00:02:46]} 10.
Nxe4 {[%clk 01:30:46]} {[%emt 00:00:48]} Nxe4 {[%clk 01:18:38]} {[%emt
00:00:26]} 11. Bxe4 {[%clk 01:30:52]} {[%emt 00:00:24]} Nxd4 {[%clk 01:18:50]}
{[%emt 00:00:19]} 12. Nxd4 {[%clk 01:28:42]} {[%emt 00:02:39]} exd4 {[%clk
01:19:04]} {[%emt 00:00:16]} 13. Qa4+ {[%clk 01:23:19]} {[%emt 00:05:53]} Kf8
{[%clk 01:18:26]} {[%emt 00:01:07]} 14. Rd1 {[%clk 01:18:55]} {[%emt 00:04:55]}
Bxh2+ {[%clk 01:15:50]} {[%emt 00:03:07]} 15. Kxh2 {[%clk 01:19:16]} {[%emt
00:00:08]} Qh4+ {[%clk 01:15:59]} {[%emt 00:00:21]} 16. Kg1 {[%clk 01:19:40]}
{[%emt 00:00:06]} Qxe4 {[%clk 01:16:02]} {[%emt 00:00:26]} 17. Bd2 {[%clk
01:17:44]} {[%emt 00:02:27]} h6 {[%clk 01:11:06]} {[%emt 00:05:26]} 18. Re1
{[%clk 01:17:03]} {[%emt 00:01:11]} Qc6 {[%clk 01:11:19]} {[%emt 00:00:17]} 19.
Re8+ {[%clk 01:16:49]} {[%emt 00:00:43]} Kxe8 {[%clk 01:10:32]} {[%emt
00:01:18]} 20. Qxd4 {[%clk 01:15:42]} {[%emt 00:01:37]} f6 {[%clk 01:07:59]}
{[%emt 00:03:03]} 21. Rc1 {[%clk 01:12:09]} {[%emt 00:04:03]} Qd7 {[%clk
01:03:36]} {[%emt 00:04:52]} 22. Qe4+ {[%clk 01:12:17]} {[%emt 00:00:23]} Kf7
{[%clk 01:00:54]} {[%emt 00:03:12]} 23. Bf4 {[%clk 01:11:25]} {[%emt 00:01:21]}
Re8 {[%clk 00:59:49]} {[%emt 00:01:36]} 24. Qh7 {[%clk 01:11:18]} {[%emt
00:00:37]} Qg4 {[%clk 00:44:40]} {[%emt 00:15:39]} 0-1